fUST/lending_fUST_20260624
["ID","MTS","AMOUNT","RATE_DAILY","PERIOD"]
[426325005,1782305456000,-150.0,0.00056164,7]
[426325023,1782305456000,-500.0,0.00056438,120]
[426325062,1782305456000,-500.0,0.00056438,120]
[426325000,1782305456000,-1522.77,0.00056164,120]
[426324999,1782305456000,-2224.45,0.00056164,90]
[426324998,1782305456000,-1679.07,0.00056164,120]
[426325004,1782305456000,-500.0,0.00056164,120]
[426325001,1782305456000,-518.52,0.00056164,120]
[426325003,1782305456000,-500.0,0.00056164,120]
[426325002,1782305456000,-2131.75,0.00056164,120]
[426325007,1782305456000,-217.0,0.000564,120]
[426325014,1782305456000,-978.44,0.00056438,120]
[426325009,1782305456000,-514.6,0.00056438,120]
[426325012,1782305456000,-500.0,0.00056438,120]
[426325010,1782305456000,-500.0,0.00056438,120]
[426325028,1782305456000,-500.0,0.00056438,120]
[426325008,1782305456000,-500.0,0.00056438,120]
[426325015,1782305456000,-500.0,0.00056438,120]
[426325013,1782305456000,-500.0,0.00056438,120]
[426325018,1782305456000,-500.0,0.00056438,120]
[426325017,1782305456000,-799.0,0.00056438,6]
[426325016,1782305456000,-500.0,0.00056438,120]
[426325025,1782305456000,-2616.703413,0.00056438,2]
[426325027,1782305456000,-500.0,0.00056438,120]
[426325020,1782305456000,-500.0,0.00056438,120]
[426325026,1782305456000,-2616.703413,0.00056438,2]
[426325019,1782305456000,-587.13066806,0.00056438,120]
[426325021,1782305456000,-531.47,0.00056438,120]
[426325022,1782305456000,-500.0,0.00056438,120]
[426325024,1782305456000,-500.0,0.00056438,120]
[426325011,1782305456000,-500.0,0.00056438,120]
[426325059,1782305456000,-973.23,0.00056438,120]
[426325006,1782305456000,-271.0,0.00056164,7]
[426325060,1782305456000,-1508.11,0.00056438,120]
[426325104,1782305456000,-500.0,0.00056712,120]
[426325093,1782305456000,-150.0,0.00056438,7]
[426325097,1782305456000,-400.0,0.00056438,120]
[426325095,1782305456000,-208.0,0.00056438,7]
[426325096,1782305456000,-400.0,0.00056438,120]
[426325102,1782305456000,-500.0,0.00056712,120]
[426325101,1782305456000,-191.47043955,0.00056712,120]
[426325103,1782305456000,-500.0,0.00056712,120]
[426325100,1782305456000,-514.6,0.00056712,120]
[426325099,1782305456000,-500.0,0.00056712,120]
[426325098,1782305456000,-254.0,0.00056438,120]
[426325105,1782305456000,-978.44,0.00056712,120]
[426325117,1782305456000,-500.0,0.00056712,2]
[426325094,1782305456000,-150.0,0.00056438,7]
[426325106,1782305456000,-500.0,0.00056712,120]
[426325116,1782305456000,-500.0,0.00056712,120]
[426325108,1782305456000,-799.0,0.00056712,6]
[426325107,1782305456000,-500.0,0.00056712,120]
[426325109,1782305456000,-500.0,0.00056712,120]
[426325114,1782305456000,-500.0,0.00056712,120]
[426325111,1782305456000,-531.47,0.00056712,120]
[426325115,1782305456000,-500.0,0.00056712,120]
[426325113,1782305456000,-500.0,0.00056712,120]
[426325119,1782305456000,-500.0,0.00056712,120]
[426325118,1782305456000,-623.83,0.00056712,120]
[426325120,1782305456000,-535.45007065,0.00056712,120]
[426325121,1782305456000,-500.0,0.00056712,120]
[426325065,1782305456000,-500.0,0.00056438,120]
[426325112,1782305456000,-500.0,0.00056712,120]
[426325087,1782305456000,-518.52,0.00056438,120]
[426325110,1782305456000,-500.0,0.00056712,120]
[426325086,1782305456000,-1522.77,0.00056438,120]
[426325090,1782305456000,-500.0,0.00056438,120]
[426325061,1782305456000,-500.0,0.00056438,120]
[426325066,1782305456000,-2368.88,0.00056438,120]
[426325064,1782305456000,-500.0,0.00056438,120]
[426325067,1782305456000,-697.19,0.00056438,120]
[426325063,1782305456000,-500.0,0.00056438,120]
[426325069,1782305456000,-605.81,0.00056438,120]
[426325068,1782305456000,-500.0,0.00056438,120]
[426325079,1782305456000,-624.84,0.00056438,120]
[426325074,1782305456000,-850.9,0.00056438,120]
[426325071,1782305456000,-500.0,0.00056438,2]
[426325073,1782305456000,-650.86,0.00056438,120]
[426325070,1782305456000,-1055.6,0.00056438,11]
[426325072,1782305456000,-713.71,0.00056438,120]
[426325057,1782305456000,-1944.73,0.00056438,120]
[426325076,1782305456000,-16139.94,0.00056438,120]
[426325075,1782305456000,-1529.97,0.00056438,90]
[426325085,1782305456000,-2224.45,0.00056438,90]
[426325081,1782305456000,-500.0,0.00056438,120]
[426325084,1782305456000,-1679.07,0.00056438,120]
[426325083,1782305456000,-500.0,0.00056438,120]
[426325092,1782305456000,-150.0,0.00056438,7]
[426325088,1782305456000,-2131.75,0.00056438,120]
[426325091,1782305456000,-150.0,0.00056438,7]
[426325089,1782305456000,-500.0,0.00056438,120]
[426325080,1782305456000,-500.0,0.00056438,120]
[426325078,1782305456000,-3508.86,0.00056438,120]
[426325077,1782305456000,-852.17,0.00056438,120]
[426325082,1782305456000,-517.54,0.00056438,120]
[426325165,1782305457000,-500.0,0.00056712,120]
[426325158,1782305457000,-10000.0,0.00056712,120]
[426325157,1782305457000,-500.0,0.00056712,120]
[426325152,1782305457000,-973.23,0.00056712,120]
[426325159,1782305457000,-10000.0,0.00056712,120]
[426325160,1782305457000,-10000.0,0.00056712,120]
[426325156,1782305457000,-500.0,0.00056712,120]
[426325161,1782305457000,-500.0,0.00056712,120]
[426325154,1782305457000,-500.0,0.00056712,120]
[426325153,1782305457000,-1508.11,0.00056712,120]
[426325170,1782305457000,-2392.578121,0.00056712,120]
[426325155,1782305457000,-500.0,0.00056712,120]
[426325171,1782305457000,-650.86,0.00056712,120]
[426325169,1782305457000,-713.71,0.00056712,120]
[426325167,1782305457000,-1055.6,0.00056712,11]
[426325172,1782305457000,-2392.578121,0.00056712,120]
[426325166,1782305457000,-605.81,0.00056712,120]
[426325173,1782305457000,-2392.578121,0.00056712,120]
[426325176,1782305457000,-1529.97,0.00056712,90]
[426325175,1782305457000,-850.9,0.00056712,120]
[426325174,1782305457000,-2392.578121,0.00056712,120]
[426325177,1782305457000,-16139.94,0.00056712,120]
[426325179,1782305457000,-3508.86,0.00056712,120]
[426325190,1782305457000,-2224.45,0.00056712,90]
[426325178,1782305457000,-852.17,0.00056712,120]
[426325180,1782305457000,-3618.056168,0.00056712,120]
[426325163,1782305457000,-2368.88,0.00056712,120]
[426325168,1782305457000,-500.0,0.00056712,2]
[426325164,1782305457000,-697.19,0.00056712,120]
[426325122,1782305457000,-500.0,0.00056712,120]
[426325150,1782305457000,-9260.627784,0.00056712,120]
[426325126,1782305457000,-500.0,0.00056712,120]
[426325125,1782305457000,-500.0,0.00056712,120]
[426325124,1782305457000,-500.0,0.00056712,120]
[426325123,1782305457000,-500.0,0.00056712,120]
[426325128,1782305457000,-673.8,0.00056712,120]
[426325138,1782305457000,-500.0,0.00056712,120]
[426325139,1782305457000,-773.51,0.00056712,120]
[426325127,1782305457000,-500.0,0.00056712,120]
[426325133,1782305457000,-853.95,0.00056712,120]
[426325129,1782305457000,-500.0,0.00056712,120]
[426325131,1782305457000,-500.0,0.00056712,120]
[426325136,1782305457000,-500.0,0.00056712,120]
[426325137,1782305457000,-500.0,0.00056712,120]
[426325162,1782305457000,-10000.0,0.00056712,120]
[426325134,1782305457000,-500.0,0.00056712,120]
[426325132,1782305457000,-500.0,0.00056712,2]
[426325135,1782305457000,-15325.24,0.00056712,120]
[426325140,1782305457000,-1158.26,0.00056712,120]
[426325142,1782305457000,-2702.467872,0.00056712,120]
[426325144,1782305457000,-2702.467872,0.00056712,120]
[426325143,1782305457000,-2702.467872,0.00056712,120]
[426325146,1782305457000,-2702.467872,0.00056712,120]
[426325141,1782305457000,-500.0,0.00056712,2]
[426325149,1782305457000,-9260.627784,0.00056712,120]
[426325145,1782305457000,-1944.73,0.00056712,120]
[426325147,1782305457000,-500.0,0.00056712,120]
[426325151,1782305457000,-9260.627784,0.00056712,120]
[426325148,1782305457000,-9260.627784,0.00056712,120]
[426325130,1782305457000,-500.0,0.00056712,120]
[426325182,1782305457000,-624.84,0.00056712,120]
[426325189,1782305457000,-1679.07,0.00056712,120]
[426325185,1782305457000,-3618.056168,0.00056712,120]
[426325221,1782305457000,-500.0,0.00056986,120]
[426325220,1782305457000,-579.32642927,0.00056986,120]
[426325218,1782305457000,-500.0,0.00056986,120]
[426325230,1782305457000,-853.95,0.00056986,120]
[426325224,1782305457000,-500.0,0.00056986,120]
[426325219,1782305457000,-500.0,0.00056986,120]
[426325229,1782305457000,-500.0,0.00056986,2]
[426325225,1782305457000,-500.0,0.00056986,120]
[426325228,1782305457000,-500.0,0.00056986,120]
[426325226,1782305457000,-673.8,0.00056986,120]
[426325222,1782305457000,-500.0,0.00056986,120]
[426325223,1782305457000,-500.0,0.00056986,120]
[426325227,1782305457000,-500.0,0.00056986,120]
[426325242,1782305457000,-1508.11,0.00056986,120]
[426325232,1782305457000,-15325.24,0.00056986,120]
[426325231,1782305457000,-500.0,0.00056986,120]
[426325233,1782305457000,-500.0,0.00056986,120]
[426325234,1782305457000,-500.0,0.00056986,120]
[426325235,1782305457000,-500.0,0.00056986,120]
[426325236,1782305457000,-773.51,0.00056986,120]
[426325237,1782305457000,-1158.26,0.00056986,120]
[426325239,1782305457000,-1944.73,0.00056986,120]
[426325241,1782305457000,-973.23,0.00056986,120]
[426325240,1782305457000,-500.0,0.00056986,120]
[426325238,1782305457000,-500.0,0.00056986,2]
[426325243,1782305457000,-500.0,0.00056986,120]
[426325181,1782305457000,-3618.056168,0.00056712,120]
[426325213,1782305457000,-500.0,0.00056986,120]
[426325212,1782305457000,-500.0,0.00056986,120]
[426325244,1782305457000,-500.0,0.00056986,120]
[426325211,1782305457000,-500.0,0.00056986,120]
[426325214,1782305457000,-500.0,0.00056986,120]
[426325183,1782305457000,-3618.056168,0.00056712,120]
[426325187,1782305457000,-517.54,0.00056712,120]
[426325188,1782305457000,-500.0,0.00056712,120]
[426325186,1782305457000,-500.0,0.00056712,120]
[426325191,1782305457000,-1522.77,0.00056712,120]
[426325193,1782305457000,-2131.75,0.00056712,120]
[426325192,1782305457000,-518.52,0.00056712,120]
[426325198,1782305457000,-621.0,0.00056712,120]
[426325194,1782305457000,-500.0,0.00056712,120]
[426325196,1782305457000,-700.0,0.00056712,120]
[426325195,1782305457000,-500.0,0.00056712,120]
[426325197,1782305457000,-700.0,0.00056712,120]
[426325201,1782305457000,-500.0,0.00056986,120]
[426325184,1782305457000,-500.0,0.00056712,120]
[426325204,1782305457000,-978.44,0.00056986,120]
[426325215,1782305457000,-500.0,0.00056986,120]
[426325210,1782305457000,-531.47,0.00056986,120]
[426325209,1782305457000,-500.0,0.00056986,120]
[426325205,1782305457000,-500.0,0.00056986,120]
[426325199,1782305457000,-500.0,0.00056986,120]
[426325216,1782305457000,-500.0,0.00056986,2]
[426325217,1782305457000,-623.83,0.00056986,120]
[426325207,1782305457000,-799.0,0.00056986,6]
[426325206,1782305457000,-500.0,0.00056986,120]
[426325203,1782305457000,-500.0,0.00056986,120]
[426325200,1782305457000,-514.6,0.00056986,120]
[426325202,1782305457000,-268.42894765,0.00056986,120]
[426325208,1782305457000,-500.0,0.00056986,120]
[426325283,1782305458000,-500.0,0.0005726,120]
[426325284,1782305458000,-500.0,0.0005726,120]
[426325293,1782305458000,-500.0,0.0005726,120]
[426325292,1782305458000,-500.0,0.0005726,120]
[426325273,1782305458000,-750.0,0.00056986,120]
[426325279,1782305458000,-514.6,0.0005726,120]
[426325277,1782305458000,-955.9142229,0.00057081,2]
[426325278,1782305458000,-500.0,0.0005726,120]
[426325280,1782305458000,-500.0,0.0005726,120]
[426325276,1782305458000,-1000.0,0.00057,120]
[426325282,1782305458000,-978.44,0.0005726,120]
[426325285,1782305458000,-799.0,0.0005726,6]
[426325294,1782305458000,-301.6368633,0.0005726,2]
[426325286,1782305458000,-182.81251189,0.0005726,120]
[426325287,1782305458000,-500.0,0.0005726,120]
[426325291,1782305458000,-500.0,0.0005726,120]
[426325288,1782305458000,-531.47,0.0005726,120]
[426325290,1782305458000,-500.0,0.0005726,120]
[426325297,1782305458000,-500.0,0.0005726,120]
[426325296,1782305458000,-500.0,0.0005726,120]
[426325302,1782305458000,-500.0,0.0005726,120]
[426325299,1782305458000,-500.0,0.0005726,120]
[426325295,1782305458000,-623.83,0.0005726,120]
[426325300,1782305458000,-500.0,0.0005726,120]
[426325301,1782305458000,-500.0,0.0005726,120]
[426325281,1782305458000,-500.0,0.0005726,120]
[426325289,1782305458000,-500.0,0.0005726,120]
[426325275,1782305458000,-607.0,0.00056986,120]
[426325268,1782305458000,-1522.77,0.00056986,120]
[426325272,1782305458000,-500.0,0.00056986,120]
[426325298,1782305458000,-500.0,0.0005726,120]
[426325246,1782305458000,-500.0,0.00056986,120]
[426325245,1782305458000,-221.30448348,0.00056986,120]
[426325247,1782305458000,-500.0,0.00056986,120]
[426325255,1782305458000,-650.86,0.00056986,120]
[426325251,1782305458000,-605.81,0.00056986,120]
[426325248,1782305458000,-2368.88,0.00056986,120]
[426325250,1782305458000,-500.0,0.00056986,120]
[426325253,1782305458000,-500.0,0.00056986,2]
[426325252,1782305458000,-1055.6,0.00056986,11]
[426325254,1782305458000,-713.71,0.00056986,120]
[426325249,1782305458000,-697.19,0.00056986,120]
[426325257,1782305458000,-1529.97,0.00056986,90]
[426325256,1782305458000,-850.9,0.00056986,120]
[426325267,1782305458000,-2224.45,0.00056986,90]
[426325258,1782305458000,-16139.94,0.00056986,120]
[426325259,1782305458000,-852.17,0.00056986,120]
[426325263,1782305458000,-500.0,0.00056986,120]
[426325261,1782305458000,-624.84,0.00056986,120]
[426325262,1782305458000,-500.0,0.00056986,120]
[426325260,1782305458000,-3508.86,0.00056986,120]
[426325264,1782305458000,-517.54,0.00056986,120]
[426325265,1782305458000,-500.0,0.00056986,120]
[426325266,1782305458000,-1679.07,0.00056986,120]
[426325269,1782305458000,-518.52,0.00056986,120]
[426325271,1782305458000,-500.0,0.00056986,120]
[426325274,1782305458000,-750.0,0.00056986,120]
[426325270,1782305458000,-2131.75,0.00056986,120]
[426325303,1782305458000,-673.8,0.0005726,120]
[426325312,1782305458000,-500.0,0.0005726,120]
[426325307,1782305458000,-853.95,0.0005726,120]
[426325334,1782305458000,-16139.94,0.0005726,120]
[426325339,1782305458000,-500.0,0.0005726,120]
[426325335,1782305458000,-852.17,0.0005726,120]
[426325349,1782305458000,-168.0,0.000575,120]
[426325340,1782305458000,-517.54,0.0005726,120]
[426325342,1782305458000,-1679.07,0.0005726,120]
[426325343,1782305458000,-2224.45,0.0005726,90]
[426325351,1782305458000,-514.6,0.00057534,120]
[426325341,1782305458000,-500.0,0.0005726,120]
[426325350,1782305458000,-500.0,0.00057534,120]
[426325344,1782305458000,-1522.77,0.0005726,120]
[426325348,1782305458000,-500.0,0.0005726,120]
[426325346,1782305458000,-2131.75,0.0005726,120]
[426325345,1782305458000,-518.52,0.0005726,120]
[426325347,1782305458000,-500.0,0.0005726,120]
[426325352,1782305458000,-500.0,0.00057534,120]
[426325355,1782305458000,-500.0,0.00057534,120]
[426325354,1782305458000,-978.44,0.00057534,120]
[426325364,1782305458000,-500.0,0.00057534,120]
[426325353,1782305458000,-500.0,0.00057534,120]
[426325359,1782305458000,-531.47,0.00057534,120]
[426325356,1782305458000,-500.0,0.00057534,120]
[426325357,1782305458000,-799.0,0.00057534,6]
[426325362,1782305458000,-500.0,0.00057534,120]
[426325363,1782305458000,-500.0,0.00057534,120]
[426325361,1782305458000,-367.59996889,0.00057534,120]
[426325305,1782305458000,-500.0,0.0005726,120]
[426325338,1782305458000,-500.0,0.0005726,120]
[426325336,1782305458000,-3508.86,0.0005726,120]
[426325358,1782305458000,-500.0,0.00057534,120]
[426325337,1782305458000,-624.84,0.0005726,120]
[426325308,1782305458000,-500.0,0.0005726,120]
[426325311,1782305458000,-500.0,0.0005726,120]
[426325306,1782305458000,-500.0,0.0005726,2]
[426325309,1782305458000,-15325.24,0.0005726,120]
[426325313,1782305458000,-773.51,0.0005726,120]
[426325304,1782305458000,-500.0,0.0005726,120]
[426325360,1782305458000,-500.0,0.00057534,120]
[426325329,1782305458000,-500.0,0.0005726,2]
[426325314,1782305458000,-1158.26,0.0005726,120]
[426325316,1782305458000,-1944.73,0.0005726,120]
[426325326,1782305458000,-500.0,0.0005726,120]
[426325315,1782305458000,-500.0,0.0005726,2]
[426325327,1782305458000,-605.81,0.0005726,120]
[426325310,1782305458000,-500.0,0.0005726,120]
[426325318,1782305458000,-973.23,0.0005726,120]
[426325332,1782305458000,-850.9,0.0005726,120]
[426325317,1782305458000,-500.0,0.0005726,120]
[426325330,1782305458000,-713.71,0.0005726,120]
[426325331,1782305458000,-650.86,0.0005726,120]
[426325328,1782305458000,-1055.6,0.0005726,11]
[426325325,1782305458000,-697.19,0.0005726,120]
[426325333,1782305458000,-1529.97,0.0005726,90]
[426325321,1782305458000,-500.0,0.0005726,120]
[426325324,1782305458000,-2368.88,0.0005726,120]
[426325322,1782305458000,-483.59376287,0.0005726,120]
[426325319,1782305458000,-1508.11,0.0005726,120]
[426325320,1782305458000,-500.0,0.0005726,120]
[426325323,1782305458000,-500.0,0.0005726,120]
[426325404,1782305459000,-852.17,0.00057534,120]
[426325402,1782305459000,-1529.97,0.00057534,90]
[426325405,1782305459000,-3508.86,0.00057534,120]
[426325407,1782305459000,-354.12215938,0.00057534,120]
[426325401,1782305459000,-850.9,0.00057534,120]
[426325391,1782305459000,-519.20761643,0.00057534,120]
[426325398,1782305459000,-500.0,0.00057534,2]
[426325395,1782305459000,-500.0,0.00057534,120]
[426325399,1782305459000,-713.71,0.00057534,120]
[426325397,1782305459000,-1055.6,0.00057534,11]
[426325403,1782305459000,-16139.94,0.00057534,120]
[426325406,1782305459000,-624.84,0.00057534,120]
[426325416,1782305459000,-190.66328359,0.00057534,120]
[426325412,1782305459000,-2224.45,0.00057534,90]
[426325408,1782305459000,-500.0,0.00057534,120]
[426325409,1782305459000,-517.54,0.00057534,120]
[426325411,1782305459000,-1679.07,0.00057534,120]
[426325413,1782305459000,-1522.77,0.00057534,120]
[426325425,1782305459000,-500.0,0.00057808,120]
[426325415,1782305459000,-2131.75,0.00057534,120]
[426325419,1782305459000,-1000.0,0.00057723,120]
[426325414,1782305459000,-518.52,0.00057534,120]
[426325418,1782305459000,-217.0,0.000577,120]
[426325417,1782305459000,-500.0,0.00057534,120]
[426325396,1782305459000,-605.81,0.00057534,120]
[426325410,1782305459000,-500.0,0.00057534,120]
[426325389,1782305459000,-1508.11,0.00057534,120]
[426325381,1782305459000,-627.90858165,0.00057534,120]
[426325392,1782305459000,-500.0,0.00057534,120]
[426325423,1782305459000,-514.6,0.00057808,120]
[426325366,1782305459000,-500.0,0.00057534,120]
[426325365,1782305459000,-623.83,0.00057534,120]
[426325377,1782305459000,-853.95,0.00057534,120]
[426325369,1782305459000,-500.0,0.00057534,120]
[426325368,1782305459000,-500.0,0.00057534,120]
[426325367,1782305459000,-500.0,0.00057534,120]
[426325370,1782305459000,-500.0,0.00057534,120]
[426325375,1782305459000,-500.0,0.00057534,120]
[426325374,1782305459000,-500.0,0.00057534,120]
[426325372,1782305459000,-500.0,0.00057534,120]
[426325371,1782305459000,-500.0,0.00057534,120]
[426325394,1782305459000,-697.19,0.00057534,120]
[426325373,1782305459000,-673.8,0.00057534,120]
[426325380,1782305459000,-581.05607521,0.00057534,120]
[426325379,1782305459000,-15325.24,0.00057534,120]
[426325387,1782305459000,-500.0,0.00057534,120]
[426325383,1782305459000,-773.51,0.00057534,120]
[426325384,1782305459000,-1158.26,0.00057534,120]
[426325382,1782305459000,-500.0,0.00057534,120]
[426325388,1782305459000,-973.23,0.00057534,120]
[426325386,1782305459000,-1944.73,0.00057534,120]
[426325385,1782305459000,-500.0,0.00057534,2]
[426325390,1782305459000,-500.0,0.00057534,120]
[426325400,1782305459000,-650.86,0.00057534,120]
[426325393,1782305459000,-2368.88,0.00057534,120]
[426325378,1782305459000,-500.0,0.00057534,120]
[426325422,1782305459000,-500.0,0.00057808,120]
[426325376,1782305459000,-500.0,0.00057534,2]
[426325421,1782305459000,-198.02875313,0.00057786,42]
[426325452,1782305459000,-773.51,0.00057808,120]
[426325456,1782305459000,-500.0,0.00057808,120]
[426325454,1782305459000,-500.0,0.00057808,2]
[426325458,1782305459000,-1508.11,0.00057808,120]
[426325461,1782305459000,-2368.88,0.00057808,120]
[426325462,1782305459000,-697.19,0.00057808,120]
[426325463,1782305459000,-567.5766131,0.00057808,120]
[426325460,1782305459000,-500.0,0.00057808,120]
[426325459,1782305459000,-500.0,0.00057808,120]
[426325464,1782305459000,-605.81,0.00057808,120]
[426325465,1782305459000,-1055.6,0.00057808,11]
[426325467,1782305459000,-713.71,0.00057808,120]
[426325453,1782305459000,-1158.26,0.00057808,120]
[426325466,1782305459000,-500.0,0.00057808,2]
[426325468,1782305459000,-650.86,0.00057808,120]
[426325470,1782305459000,-1529.97,0.00057808,90]
[426325471,1782305459000,-16139.94,0.00057808,120]
[426325472,1782305459000,-852.17,0.00057808,120]
[426325473,1782305459000,-3508.86,0.00057808,120]
[426325476,1782305459000,-517.54,0.00057808,120]
[426325475,1782305459000,-500.0,0.00057808,120]
[426325474,1782305459000,-624.84,0.00057808,120]
[426325478,1782305459000,-1679.07,0.00057808,120]
[426325477,1782305459000,-220.89002722,0.00057808,120]
[426325479,1782305459000,-2224.45,0.00057808,90]
[426325480,1782305459000,-1522.77,0.00057808,120]
[426325469,1782305459000,-850.9,0.00057808,120]
[426325457,1782305459000,-973.23,0.00057808,120]
[426325481,1782305459000,-518.52,0.00057808,120]
[426325450,1782305459000,-15325.24,0.00057808,120]
[426325455,1782305459000,-1944.73,0.00057808,120]
[426325420,1782305459000,-1000.0,0.00057723,120]
[426325426,1782305459000,-978.44,0.00057808,120]
[426325428,1782305459000,-500.0,0.00057808,120]
[426325431,1782305459000,-531.47,0.00057808,120]
[426325429,1782305459000,-799.0,0.00057808,6]
[426325435,1782305459000,-500.0,0.00057808,120]
[426325430,1782305459000,-500.0,0.00057808,120]
[426325433,1782305459000,-500.0,0.00057808,120]
[426325437,1782305459000,-500.0,0.00057808,120]
[426325427,1782305459000,-500.0,0.00057808,120]
[426325436,1782305459000,-623.83,0.00057808,120]
[426325434,1782305459000,-500.0,0.00057808,120]
[426325424,1782305459000,-306.37186371,0.00057808,120]
[426325438,1782305459000,-500.0,0.00057808,120]
[426325432,1782305459000,-500.0,0.00057808,120]
[426325449,1782305459000,-500.0,0.00057808,120]
[426325451,1782305459000,-500.0,0.00057808,120]
[426325448,1782305459000,-853.95,0.00057808,120]
[426325445,1782305459000,-500.0,0.00057808,120]
[426325443,1782305459000,-500.0,0.00057808,120]
[426325447,1782305459000,-500.0,0.00057808,2]
[426325446,1782305459000,-500.0,0.00057808,120]
[426325442,1782305459000,-500.0,0.00057808,120]
[426325441,1782305459000,-500.0,0.00057808,120]
[426325440,1782305459000,-496.16679925,0.00057808,120]
[426325439,1782305459000,-500.0,0.00057808,120]
[426325444,1782305459000,-673.8,0.00057808,120]
[426325532,1782305460000,-850.9,0.00058082,120]
[426325521,1782305460000,-973.23,0.00058082,120]
[426325516,1782305460000,-773.51,0.00058082,120]
[426325515,1782305460000,-500.0,0.00058082,120]
[426325513,1782305460000,-500.0,0.00058082,120]
[426325512,1782305460000,-853.95,0.00058082,120]
[426325514,1782305460000,-15325.24,0.00058082,120]
[426325518,1782305460000,-387.66877759,0.00058082,2]
[426325519,1782305460000,-1944.73,0.00058082,120]
[426325511,1782305460000,-500.0,0.00058082,2]
[426325531,1782305460000,-650.86,0.00058082,120]
[426325528,1782305460000,-1055.6,0.00058082,11]
[426325522,1782305460000,-1508.11,0.00058082,120]
[426325523,1782305460000,-500.0,0.00058082,120]
[426325524,1782305460000,-500.0,0.00058082,120]
[426325520,1782305460000,-617.63125472,0.00058082,120]
[426325509,1782305460000,-500.0,0.00058082,120]
[426325526,1782305460000,-697.19,0.00058082,120]
[426325529,1782305460000,-500.0,0.00058082,2]
[426325530,1782305460000,-713.71,0.00058082,120]
[426325527,1782305460000,-605.81,0.00058082,120]
[426325533,1782305460000,-1529.97,0.00058082,90]
[426325541,1782305460000,-2224.45,0.00058082,90]
[426325540,1782305460000,-1679.07,0.00058082,120]
[426325525,1782305460000,-2368.88,0.00058082,120]
[426325517,1782305460000,-1158.26,0.00058082,120]
[426325502,1782305460000,-500.0,0.00058082,120]
[426325510,1782305460000,-278.5747561,0.00058082,120]
[426325542,1782305460000,-1522.77,0.00058082,120]
[426325482,1782305460000,-2131.75,0.00057808,120]
[426325483,1782305460000,-500.0,0.00057808,120]
[426325486,1782305460000,-500.0,0.00058,120]
[426325485,1782305460000,-1000.0,0.00058,120]
[426325487,1782305460000,-1000.0,0.00058,60]
[426325488,1782305460000,-500.0,0.00058082,120]
[426325489,1782305460000,-514.6,0.00058082,120]
[426325491,1782305460000,-978.44,0.00058082,120]
[426325490,1782305460000,-500.0,0.00058082,120]
[426325484,1782305460000,-2000.0,0.000579,120]
[426325492,1782305460000,-500.0,0.00058082,120]
[426325494,1782305460000,-799.0,0.00058082,6]
[426325493,1782305460000,-532.14596547,0.00058082,120]
[426325506,1782305460000,-500.0,0.00058082,120]
[426325507,1782305460000,-500.0,0.00058082,120]
[426325495,1782305460000,-500.0,0.00058082,120]